[Event "Live Chess"]
[Site "Chess.com"]
[Date "2024.06.02"]
[Round "-"]
[White "RockTroll"]
[Black "booktrunk"]
[Result "1/2-1/2"]
[WhiteElo "2172"]
[BlackElo "1527"]
[TimeControl "300"]
[EndTime "21:35:33 PDT"]
[Termination "Game drawn - insufficient material"]

1. e4 {[%clk 0:04:58.2]} 1... b6 {[%clk 0:04:57.5]} 2. d4 {[%clk 0:04:56.9]}
2... Bb7 {[%clk 0:04:54.4]} 3. Bd3 {[%clk 0:04:55.7]} 3... h6 {[%clk 0:04:43.2]}
4. Nf3 {[%clk 0:04:48.3]} 4... d6 {[%clk 0:04:39.8]} 5. O-O {[%clk 0:04:35.3]}
5... Nd7 {[%clk 0:04:35.5]} 6. Re1 {[%clk 0:04:31.6]} 6... e5 {[%clk 0:04:31.6]}
7. c3 {[%clk 0:04:29.6]} 7... exd4 {[%clk 0:04:29.8]} 8. cxd4 {[%clk 0:04:28.5]}
8... c5 {[%clk 0:04:27.6]} 9. e5 {[%clk 0:04:23.3]} 9... dxe5 {[%clk 0:04:21.4]}
10. Nxe5 {[%clk 0:04:18.2]} 10... Nxe5 {[%clk 0:04:19.2]} 11. Rxe5+ {[%clk
0:04:17.2]} 11... Be7 {[%clk 0:04:17.7]} 12. Bb5+ {[%clk 0:04:16.7]} 12... Kf8
{[%clk 0:04:15.4]} 13. Be3 {[%clk 0:04:01.3]} 13... Nf6 {[%clk 0:04:14.3]} 14.
Nc3 {[%clk 0:03:58.3]} 14... Nd7 {[%clk 0:04:07.9]} 15. Rh5 {[%clk 0:03:53.6]}
15... Bf6 {[%clk 0:03:57.1]} 16. dxc5 {[%clk 0:03:50.5]} 16... Nxc5 {[%clk
0:03:54.9]} 17. Bxc5+ {[%clk 0:03:44.2]} 17... bxc5 {[%clk 0:03:52.6]} 18. Nd5
{[%clk 0:03:43.8]} 18... g6 {[%clk 0:03:44.4]} 19. Nxf6 {[%clk 0:03:41.3]} 19...
gxh5 {[%clk 0:03:42.6]} 20. Nd7+ {[%clk 0:03:34.1]} 20... Kg8 {[%clk 0:03:35]}
21. Qxh5 {[%clk 0:03:32.6]} 21... Qg5 {[%clk 0:03:28.8]} 22. Qh3 {[%clk
0:03:21]} 22... Rd8 {[%clk 0:03:22.6]} 23. Re1 {[%clk 0:03:15.8]} 23... a6
{[%clk 0:03:08.3]} 24. Bc4 {[%clk 0:03:12]} 24... Bc8 {[%clk 0:03:03.7]} 25. Qf3
{[%clk 0:02:11.3]} 25... Rh7 {[%clk 0:02:53]} 26. Nf6+ {[%clk 0:02:07.7]} 26...
Kh8 {[%clk 0:02:50]} 27. Nxh7 {[%clk 0:02:04.5]} 27... Kxh7 {[%clk 0:02:47.2]}
28. Bd3+ {[%clk 0:02:02.4]} 28... f5 {[%clk 0:02:45.9]} 29. h4 {[%clk 0:01:49]}
29... Qf6 {[%clk 0:02:40.7]} 30. Re3 {[%clk 0:01:30.9]} 30... Rg8 {[%clk
0:02:32.1]} 31. g3 {[%clk 0:01:24.1]} 31... Rg7 {[%clk 0:02:30.6]} 32. Qf4
{[%clk 0:01:19]} 32... Bb7 {[%clk 0:02:13.3]} 33. Qxf5+ {[%clk 0:01:12.9]} 33...
Qxf5 {[%clk 0:02:09.5]} 34. Bxf5+ {[%clk 0:01:12.8]} 34... Kh8 {[%clk
0:02:08.2]} 35. Re8+ {[%clk 0:01:11.4]} 35... Rg8 {[%clk 0:02:06.7]} 36. Rxg8+
{[%clk 0:01:11]} 36... Kxg8 {[%clk 0:02:04.9]} 37. Kf1 {[%clk 0:01:10.6]} 37...
Kg7 {[%clk 0:02:03.7]} 38. Ke2 {[%clk 0:01:10]} 38... Kf6 {[%clk 0:02:02.6]} 39.
Bd3 {[%clk 0:01:09.6]} 39... a5 {[%clk 0:01:58.4]} 40. b3 {[%clk 0:01:07.5]}
40... Bc6 {[%clk 0:01:54.2]} 41. Bc4 {[%clk 0:01:07.1]} 41... Ke5 {[%clk
0:01:52]} 42. Ke3 {[%clk 0:01:06.4]} 42... a4 {[%clk 0:01:49.1]} 43. f4+ {[%clk
0:01:04.6]} 43... Kf6 {[%clk 0:01:46.4]} 44. g4 {[%clk 0:01:03.4]} 44... axb3
{[%clk 0:01:44.5]} 45. axb3 {[%clk 0:01:02.1]} 45... Be8 {[%clk 0:01:39.1]} 46.
g5+ {[%clk 0:01:02]} 46... hxg5 {[%clk 0:01:37.5]} 47. hxg5+ {[%clk 0:01:01.9]}
47... Kf5 {[%clk 0:01:35.2]} 48. Bd3+ {[%clk 0:01:00.8]} 48... Kg4 {[%clk
0:01:31.8]} 49. f5 {[%clk 0:01:00.7]} 49... Kxg5 {[%clk 0:01:30.2]} 50. Ke4
{[%clk 0:00:58.7]} 50... Kf6 {[%clk 0:01:28.3]} 51. Kd5 {[%clk 0:00:57.9]} 51...
Bf7+ {[%clk 0:01:27]} 52. Kxc5 {[%clk 0:00:57.1]} 52... Bxb3 {[%clk 0:01:25]}
53. Kd4 {[%clk 0:00:54.5]} 53... Be6 {[%clk 0:01:23]} 54. fxe6 {[%clk
0:00:51.8]} 54... Kxe6 {[%clk 0:01:22]} 1/2-1/2

[Event "Live Chess"]
[Site "Chess.com"]
[Date "2024.06.02"]
[Round "-"]
[White "IgorSchukin"]
[Black "McFim"]
[Result "1/2-1/2"]
[WhiteElo "1773"]
[BlackElo "1653"]
[TimeControl "300"]
[EndTime "21:36:50 PDT"]
[Termination "Game drawn - insufficient material"]

1. e4 {[%clk 0:04:58.3]} 1... c6 {[%clk 0:04:57]} 2. d4 {[%clk 0:04:56.9]} 2...
d5 {[%clk 0:04:55.9]} 3. Nc3 {[%clk 0:04:55.1]} 3... dxe4 {[%clk 0:04:54.1]} 4.
Nxe4 {[%clk 0:04:54]} 4... Nd7 {[%clk 0:04:53.5]} 5. Qe2 {[%clk 0:04:52.3]} 5...
Ndf6 {[%clk 0:04:52]} 6. Nf3 {[%clk 0:04:51.1]} 6... Nxe4 {[%clk 0:04:50.6]} 7.
Qxe4 {[%clk 0:04:50.2]} 7... Nf6 {[%clk 0:04:50.1]} 8. Qe5 {[%clk 0:04:49]} 8...
Bg4 {[%clk 0:04:34.5]} 9. Bf4 {[%clk 0:04:46.6]} 9... e6 {[%clk 0:04:26.6]} 10.
O-O-O {[%clk 0:04:21.3]} 10... Bh5 {[%clk 0:04:11.3]} 11. Bc4 {[%clk 0:04:14.1]}
11... Bg6 {[%clk 0:04:07.4]} 12. Rhe1 {[%clk 0:03:56.5]} 12... Be7 {[%clk
0:03:51.5]} 13. Ng5 {[%clk 0:03:43.5]} 13... O-O {[%clk 0:03:42.4]} 14. Bxe6
{[%clk 0:03:38.8]} 14... fxe6 {[%clk 0:03:35.3]} 15. Nxe6 {[%clk 0:03:37.7]}
15... Nd7 {[%clk 0:03:12.7]} 16. Nxd8 {[%clk 0:03:31.3]} 16... Nxe5 {[%clk
0:03:11]} 17. Ne6 {[%clk 0:03:21.1]} 17... Rf7 {[%clk 0:02:53.1]} 18. Bxe5
{[%clk 0:03:18.1]} 18... Bf6 {[%clk 0:02:41.7]} 19. Bxf6 {[%clk 0:03:14.8]}
19... Rxf6 {[%clk 0:02:40.2]} 20. f3 {[%clk 0:03:07.9]} 20... Re8 {[%clk
0:02:33.8]} 21. Nc5 {[%clk 0:03:06.3]} 21... Rxe1 {[%clk 0:02:31.4]} 22. Rxe1
{[%clk 0:03:04.4]} 22... b6 {[%clk 0:02:30.4]} 23. Ne4 {[%clk 0:02:58.6]} 23...
Rf8 {[%clk 0:02:26.1]} 24. h4 {[%clk 0:02:50.3]} 24... h6 {[%clk 0:02:12.5]} 25.
Kd2 {[%clk 0:02:48.4]} 25... Rd8 {[%clk 0:02:07.6]} 26. Ke3 {[%clk 0:02:46.7]}
26... Bf7 {[%clk 0:02:04.9]} 27. b3 {[%clk 0:02:44.5]} 27... a5 {[%clk
0:02:02.6]} 28. c4 {[%clk 0:02:43]} 28... a4 {[%clk 0:01:59.6]} 29. Rc1 {[%clk
0:02:35.1]} 29... axb3 {[%clk 0:01:56.1]} 30. axb3 {[%clk 0:02:33.7]} 30... Ra8
{[%clk 0:01:51]} 31. Nd6 {[%clk 0:02:28.5]} 31... Bg6 {[%clk 0:01:41.9]} 32. g4
{[%clk 0:02:26]} 32... Rd8 {[%clk 0:01:36.5]} 33. c5 {[%clk 0:02:23.3]} 33...
bxc5 {[%clk 0:01:33.7]} 34. dxc5 {[%clk 0:02:22]} 34... Rb8 {[%clk 0:01:30.5]}
35. Rc3 {[%clk 0:02:19.4]} 35... Rb4 {[%clk 0:01:27.8]} 36. h5 {[%clk
0:02:15.2]} 36... Bb1 {[%clk 0:01:25.6]} 37. Nc8 {[%clk 0:01:59.9]} 37... Ba2
{[%clk 0:01:18]} 38. Ne7+ {[%clk 0:01:57.5]} 38... Kf7 {[%clk 0:01:15.7]} 39.
Nxc6 {[%clk 0:01:56.5]} 39... Rxb3 {[%clk 0:01:14.6]} 40. Rxb3 {[%clk
0:01:54.2]} 40... Bxb3 {[%clk 0:01:14.5]} 41. f4 {[%clk 0:01:47.9]} 41... Bd5
{[%clk 0:01:09.3]} 42. Nd4 {[%clk 0:01:41.9]} 42... g6 {[%clk 0:00:59.7]} 43.
hxg6+ {[%clk 0:01:39.3]} 43... Kxg6 {[%clk 0:00:58.4]} 44. Nf5 {[%clk
0:01:33.9]} 44... Be6 {[%clk 0:00:53.4]} 45. c6 {[%clk 0:01:26.1]} 45... h5
{[%clk 0:00:45.5]} 46. Ne7+ {[%clk 0:01:18.5]} 46... Kf7 {[%clk 0:00:40.7]} 47.
gxh5 {[%clk 0:01:07.6]} 47... Kxe7 {[%clk 0:00:38.5]} 48. h6 {[%clk 0:01:04.7]}
48... Kf6 {[%clk 0:00:37.2]} 49. Ke4 {[%clk 0:01:03.6]} 49... Kg6 {[%clk
0:00:32.7]} 50. Ke5 {[%clk 0:01:01.1]} 50... Bc8 {[%clk 0:00:29.8]} 51. h7
{[%clk 0:00:55.5]} 51... Kxh7 {[%clk 0:00:28.1]} 52. f5 {[%clk 0:00:54.8]} 52...
Kg7 {[%clk 0:00:26.9]} 53. f6+ {[%clk 0:00:51.1]} 53... Kf7 {[%clk 0:00:25.6]}
54. c7 {[%clk 0:00:49.5]} 54... Be6 {[%clk 0:00:23.3]} 55. Kd6 {[%clk 0:00:45]}
55... Kxf6 {[%clk 0:00:20.2]} 56. Kc6 {[%clk 0:00:40.6]} 56... Ke7 {[%clk
0:00:18.9]} 57. Kb7 {[%clk 0:00:38.6]} 57... Bd7 {[%clk 0:00:17.3]} 58. Kb8
{[%clk 0:00:36.4]} 58... Kd6 {[%clk 0:00:15.4]} 59. Kb7 {[%clk 0:00:35.1]} 59...
Ke7 {[%clk 0:00:13.8]} 60. Kb6 {[%clk 0:00:33.8]} 60... Bc8 {[%clk 0:00:12.4]}
61. Kc6 {[%clk 0:00:32.4]} 61... Ke8 {[%clk 0:00:11.3]} 62. Kd6 {[%clk
0:00:31.2]} 62... Kf7 {[%clk 0:00:10.1]} 63. Kc6 {[%clk 0:00:28.4]} 63... Ke6
{[%clk 0:00:09.2]} 64. Kc5 {[%clk 0:00:25.9]} 64... Kd7 {[%clk 0:00:08.1]} 65.
Kb6 {[%clk 0:00:24.8]} 65... Kd6 {[%clk 0:00:07]} 66. Ka7 {[%clk 0:00:23.1]}
66... Kxc7 {[%clk 0:00:06]} 1/2-1/2

[Event "Live Chess"]
[Site "Chess.com"]
[Date "2024.06.02"]
[Round "-"]
[White "NeilDruggan73"]
[Black "Delacorta"]
[Result "0-1"]
[WhiteElo "1730"]
[BlackElo "1534"]
[TimeControl "300"]
[EndTime "21:37:23 PDT"]
[Termination "Delacorta won - game abandoned"]

1. d4 {[%clk 0:04:59.7]} 1... e6 {[%clk 0:04:58.1]} 2. Nf3 {[%clk 0:04:59.6]}
2... f5 {[%clk 0:04:57.3]} 3. Nc3 {[%clk 0:04:56.8]} 3... Nf6 {[%clk 0:04:56.3]}
4. Bg5 {[%clk 0:04:55.6]} 4... Be7 {[%clk 0:04:55]} 5. Ne5 {[%clk 0:04:54.8]}
5... O-O {[%clk 0:04:53.1]} 6. f3 {[%clk 0:04:50.2]} 6... d6 {[%clk 0:04:48.2]}
7. Bxf6 {[%clk 0:04:48.9]} 7... Bxf6 {[%clk 0:04:36]} 8. Nd3 {[%clk 0:04:47]}
8... Bxd4 {[%clk 0:04:33.6]} 9. Qd2 {[%clk 0:04:46.9]} 9... Qf6 {[%clk
0:04:23.1]} 10. O-O-O {[%clk 0:04:45.6]} 10... Bxc3 {[%clk 0:04:21.3]} 11. bxc3
{[%clk 0:04:43.4]} 11... Nd7 {[%clk 0:04:09.8]} 12. h4 {[%clk 0:04:22.1]} 12...
Ne5 {[%clk 0:04:02.4]} 13. g4 {[%clk 0:04:15.1]} 13... Nxd3+ {[%clk 0:03:56.9]}
14. cxd3 {[%clk 0:04:11.3]} 14... fxg4 {[%clk 0:03:46.3]} 15. Kc2 {[%clk
0:04:10.4]} 15... Qf4 {[%clk 0:03:26.6]} 16. e3 {[%clk 0:04:08.6]} 16... Qa4+
{[%clk 0:03:23.6]} 17. Kb2 {[%clk 0:04:06.7]} 17... Rxf3 {[%clk 0:03:16.6]} 18.
Be2 {[%clk 0:04:02.5]} 18... Rf2 {[%clk 0:03:13.7]} 19. Rde1 {[%clk 0:04:00.7]}
19... g3 {[%clk 0:03:11.8]} 20. Ref1 {[%clk 0:03:59.4]} 20... g2 {[%clk
0:03:06.1]} 21. Rxf2 {[%clk 0:03:58.4]} 21... gxh1=Q {[%clk 0:03:04.9]} 0-1

[Event "Live Chess"]
[Site "Chess.com"]
[Date "2024.06.02"]
[Round "-"]
[White "KeithArkell"]
[Black "Duke_of_Bebington"]
[Result "1-0"]
[WhiteElo "2424"]
[BlackElo "1664"]
[TimeControl "300"]
[EndTime "21:37:43 PDT"]
[Termination "KeithArkell won by resignation"]

1. d4 {[%clk 0:04:57.6]} 1... Nf6 {[%clk 0:04:57.6]} 2. Nf3 {[%clk 0:04:57]}
2... d5 {[%clk 0:04:55.1]} 3. c4 {[%clk 0:04:56.1]} 3... c6 {[%clk 0:04:53.6]}
4. Nc3 {[%clk 0:04:55]} 4... dxc4 {[%clk 0:04:50]} 5. a4 {[%clk 0:04:53.3]} 5...
Nd5 {[%clk 0:04:34.1]} 6. e3 {[%clk 0:04:51.6]} 6... Nxc3 {[%clk 0:04:31.5]} 7.
bxc3 {[%clk 0:04:50.3]} 7... b5 {[%clk 0:04:30.1]} 8. g3 {[%clk 0:04:49.3]} 8...
Bg4 {[%clk 0:04:18.2]} 9. Bg2 {[%clk 0:04:47.4]} 9... a6 {[%clk 0:04:01.9]} 10.
Qc2 {[%clk 0:04:45.8]} 10... g6 {[%clk 0:03:57.3]} 11. Ne5 {[%clk 0:04:43.4]}
11... Bf5 {[%clk 0:03:51]} 12. Qa2 {[%clk 0:04:40.6]} 12... Qc8 {[%clk
0:03:40.6]} 13. axb5 {[%clk 0:04:36.8]} 13... cxb5 {[%clk 0:03:37.9]} 14. Bxa8
{[%clk 0:04:34.8]} 14... Bg7 {[%clk 0:03:34.6]} 15. Bg2 {[%clk 0:04:24.9]} 15...
Bxe5 {[%clk 0:03:32.9]} 16. dxe5 {[%clk 0:04:21.8]} 16... Bd3 {[%clk 0:03:32.2]}
17. Bf1 {[%clk 0:04:13.4]} 17... Qd7 {[%clk 0:03:27.6]} 18. Bxd3 {[%clk
0:04:12.2]} 18... Qxd3 {[%clk 0:03:26.5]} 19. Bd2 {[%clk 0:04:11.4]} 19... O-O
{[%clk 0:03:24.1]} 20. Qb1 {[%clk 0:04:10.1]} 20... Rd8 {[%clk 0:03:22.2]} 21.
Qxd3 {[%clk 0:04:08.9]} 21... Rxd3 {[%clk 0:03:20.3]} 22. Ke2 {[%clk 0:04:08.4]}
1-0

[Event "Live Chess"]
[Site "Chess.com"]
[Date "2024.06.02"]
[Round "-"]
[White "juniortay"]
[Black "MagnersCarlsberg2870"]
[Result "1-0"]
[WhiteElo "2449"]
[BlackElo "1825"]
[TimeControl "300"]
[EndTime "21:38:26 PDT"]
[Termination "juniortay won by resignation"]

1. e4 {[%clk 0:04:57.8]} 1... c5 {[%clk 0:04:42.9]} 2. Nf3 {[%clk 0:04:55.3]}
2... a6 {[%clk 0:04:41.2]} 3. d4 {[%clk 0:04:54.4]} 3... cxd4 {[%clk 0:04:40.2]}
4. c3 {[%clk 0:04:54]} 4... dxc3 {[%clk 0:04:35.1]} 5. Nxc3 {[%clk 0:04:53.9]}
5... Nc6 {[%clk 0:04:30.3]} 6. Bc4 {[%clk 0:04:52.9]} 6... e6 {[%clk 0:04:27.4]}
7. O-O {[%clk 0:04:52.1]} 7... Nf6 {[%clk 0:04:24.8]} 8. Qe2 {[%clk 0:04:51.4]}
8... Be7 {[%clk 0:04:23]} 9. Rd1 {[%clk 0:04:50.6]} 9... O-O {[%clk 0:04:20.5]}
10. Bf4 {[%clk 0:04:46.9]} 10... b5 {[%clk 0:04:16.2]} 11. Bb3 {[%clk
0:04:45.7]} 11... Nh5 {[%clk 0:04:12.9]} 12. Be3 {[%clk 0:04:39.9]} 12... Bb7
{[%clk 0:03:59.7]} 13. Rac1 {[%clk 0:04:37]} 13... Nf6 {[%clk 0:03:51.4]} 14.
Nd5 {[%clk 0:04:30.6]} 14... exd5 {[%clk 0:03:39.7]} 15. exd5 {[%clk 0:04:30.5]}
15... Nxd5 {[%clk 0:03:23.6]} 16. Bxd5 {[%clk 0:04:28.6]} 16... Na5 {[%clk
0:03:21.1]} 17. Ne5 {[%clk 0:04:07.7]} 17... d6 {[%clk 0:03:10.7]} 18. Bxb7
{[%clk 0:04:01.2]} 18... Nxb7 {[%clk 0:03:09.4]} 19. Nc6 {[%clk 0:03:56.1]}
19... Qd7 {[%clk 0:03:05.1]} 20. Bd4 {[%clk 0:03:33.3]} 20... Rac8 {[%clk
0:03:02.7]} 21. Nxe7+ {[%clk 0:03:28]} 1-0

[Event "Live Chess"]
[Site "Chess.com"]
[Date "2024.06.02"]
[Round "-"]
[White "KGreenGator"]
[Black "IgorSchukin"]
[Result "0-1"]
[WhiteElo "1783"]
[BlackElo "1781"]
[TimeControl "300"]
[EndTime "21:38:27 PDT"]
[Termination "IgorSchukin won by resignation"]

1. c4 {[%clk 0:04:57.6]} 1... Nf6 {[%clk 0:04:58.5]} 2. d4 {[%clk 0:04:55.9]}
2... d5 {[%clk 0:04:54.1]} 3. Nc3 {[%clk 0:04:55.5]} 3... g6 {[%clk 0:04:52.4]}
4. e3 {[%clk 0:04:54.8]} 4... Bg7 {[%clk 0:04:51.2]} 5. Nf3 {[%clk 0:04:54.4]}
5... O-O {[%clk 0:04:50.2]} 6. h3 {[%clk 0:04:52.5]} 6... c6 {[%clk 0:04:49.4]}
7. c5 {[%clk 0:04:50.9]} 7... Bf5 {[%clk 0:04:47.2]} 8. Bd3 {[%clk 0:04:49.4]}
8... Bxd3 {[%clk 0:04:44.9]} 9. Qxd3 {[%clk 0:04:47.8]} 9... Nbd7 {[%clk
0:04:44]} 10. O-O {[%clk 0:04:46.7]} 10... Re8 {[%clk 0:04:42.5]} 11. Re1 {[%clk
0:04:44.3]} 11... e5 {[%clk 0:04:40.9]} 12. e4 {[%clk 0:04:42]} 12... exd4
{[%clk 0:04:38.1]} 13. Qxd4 {[%clk 0:04:36.7]} 13... Nxe4 {[%clk 0:04:35]} 14.
Qd3 {[%clk 0:04:35]} 14... Nxc3 {[%clk 0:04:33.3]} 15. Rxe8+ {[%clk 0:04:31.7]}
15... Qxe8 {[%clk 0:04:32.1]} 16. bxc3 {[%clk 0:04:31.6]} 16... Ne5 {[%clk
0:04:30.2]} 17. Nxe5 {[%clk 0:04:29.1]} 17... Qxe5 {[%clk 0:04:27.8]} 18. Bb2
{[%clk 0:04:26.9]} 18... Re8 {[%clk 0:04:24]} 19. Qd4 {[%clk 0:04:25.2]} 19...
Qe1+ {[%clk 0:04:15.3]} 20. Rxe1 {[%clk 0:04:22]} 20... Rxe1+ {[%clk 0:04:14.8]}
21. Kh2 {[%clk 0:04:20.9]} 21... Bxd4 {[%clk 0:04:13.5]} 0-1

[Event "Live Chess"]
[Site "Chess.com"]
[Date "2024.06.02"]
[Round "-"]
[White "Dhaydon19"]
[Black "RockTroll"]
[Result "1-0"]
[WhiteElo "2674"]
[BlackElo "2171"]
[TimeControl "300"]
[EndTime "21:39:17 PDT"]
[Termination "Dhaydon19 won by resignation"]

1. d4 {[%clk 0:04:58.2]} 1... Nf6 {[%clk 0:04:55.8]} 2. Nf3 {[%clk 0:04:57.8]}
2... g6 {[%clk 0:04:55.1]} 3. g3 {[%clk 0:04:57.3]} 3... Bg7 {[%clk 0:04:54.8]}
4. Bg2 {[%clk 0:04:56.8]} 4... O-O {[%clk 0:04:54.5]} 5. c3 {[%clk 0:04:56.5]}
5... d6 {[%clk 0:04:54]} 6. O-O {[%clk 0:04:56.2]} 6... Nbd7 {[%clk 0:04:53.6]}
7. Nbd2 {[%clk 0:04:55.8]} 7... e5 {[%clk 0:04:52.9]} 8. Qc2 {[%clk 0:04:54]}
8... Re8 {[%clk 0:04:48.5]} 9. e4 {[%clk 0:04:53]} 9... c6 {[%clk 0:04:47.4]}
10. Nc4 {[%clk 0:04:51.2]} 10... Qc7 {[%clk 0:04:46.4]} 11. dxe5 {[%clk
0:04:50.5]} 11... dxe5 {[%clk 0:04:44.9]} 12. Rd1 {[%clk 0:04:49.5]} 12... Nc5
{[%clk 0:04:43.4]} 13. Nd6 {[%clk 0:04:42.9]} 13... Rd8 {[%clk 0:04:41.8]} 14.
Nxc8 {[%clk 0:04:41.7]} 14... Raxc8 {[%clk 0:04:41.7]} 15. Re1 {[%clk
0:04:35.1]} 15... a5 {[%clk 0:04:37.4]} 16. Bf1 {[%clk 0:04:08.7]} 16... h6
{[%clk 0:04:32]} 17. Rb1 {[%clk 0:04:04.9]} 17... Bf8 {[%clk 0:04:26.9]} 18. b3
{[%clk 0:04:00.4]} 18... Ne6 {[%clk 0:04:05.9]} 19. Bc4 {[%clk 0:03:50.2]} 19...
Qe7 {[%clk 0:04:00]} 20. Be3 {[%clk 0:03:47.5]} 20... Nd7 {[%clk 0:03:54.4]} 21.
Rbd1 {[%clk 0:03:43.4]} 21... Qf6 {[%clk 0:03:47.4]} 22. Kg2 {[%clk 0:03:41.1]}
22... Bc5 {[%clk 0:03:36.9]} 23. Bxe6 {[%clk 0:03:35.7]} 1-0

[Event "Live Chess"]
[Site "Chess.com"]
[Date "2024.06.02"]
[Round "-"]
[White "Duke_of_Bebington"]
[Black "Delacorta"]
[Result "1-0"]
[WhiteElo "1669"]
[BlackElo "1527"]
[TimeControl "300"]
[EndTime "21:39:27 PDT"]
[Termination "Duke_of_Bebington won by resignation"]

1. e4 {[%clk 0:04:56.3]} 1... e6 {[%clk 0:04:59]} 2. d4 {[%clk 0:04:54.9]} 2...
d5 {[%clk 0:04:58]} 3. Nd2 {[%clk 0:04:54.5]} 3... c6 {[%clk 0:04:53.8]} 4. Bd3
{[%clk 0:04:52.6]} 4... Nf6 {[%clk 0:04:47.2]} 5. e5 {[%clk 0:04:49.2]} 5...
Nfd7 {[%clk 0:04:45.4]} 6. Ne2 {[%clk 0:04:47.6]} 6... Qg5 {[%clk 0:04:44.2]} 7.
O-O {[%clk 0:04:45.6]} 7... Qh5 {[%clk 0:04:43]} 8. Nf3 {[%clk 0:04:38]} 8...
Be7 {[%clk 0:04:34.4]} 9. Ng3 {[%clk 0:04:36.9]} 9... g6 {[%clk 0:04:15.7]} 10.
Nxh5 {[%clk 0:04:35]} 10... gxh5 {[%clk 0:04:14.9]} 11. Bg5 {[%clk 0:04:28]} 1-0

[Event "Live Chess"]
[Site "Chess.com"]
[Date "2024.06.02"]
[Round "-"]
[White "rekosheten"]
[Black "Mangoalo"]
[Result "1-0"]
[WhiteElo "2465"]
[BlackElo "1062"]
[TimeControl "300"]
[EndTime "21:40:14 PDT"]
[Termination "rekosheten won by resignation"]

1. e4 {[%clk 0:04:59]} 1... f5 {[%clk 0:04:55.8]} 2. exf5 {[%clk 0:04:57.7]}
2... Nf6 {[%clk 0:04:54.2]} 3. d4 {[%clk 0:04:54.5]} 3... h6 {[%clk 0:04:51.9]}
4. Be2 {[%clk 0:04:52.2]} 4... d5 {[%clk 0:04:50]} 5. Bh5+ {[%clk 0:04:50.6]}
5... Kd7 {[%clk 0:04:45.4]} 6. Nf3 {[%clk 0:04:47.7]} 6... Nc6 {[%clk
0:04:44.4]} 7. Ne5+ {[%clk 0:04:45.7]} 7... Nxe5 {[%clk 0:04:43.7]} 8. dxe5
{[%clk 0:04:45.6]} 8... Nxh5 {[%clk 0:04:42.9]} 9. Qxh5 {[%clk 0:04:43.6]} 9...
c6 {[%clk 0:04:40.3]} 10. Bf4 {[%clk 0:04:38]} 10... Qa5+ {[%clk 0:04:35.7]} 11.
Nc3 {[%clk 0:04:34.7]} 11... Kd8 {[%clk 0:04:24.6]} 12. O-O-O {[%clk 0:04:31.4]}
12... d4 {[%clk 0:04:19.4]} 13. Rxd4+ {[%clk 0:04:29.3]} 13... Kc7 {[%clk
0:04:18.2]} 14. e6+ {[%clk 0:04:24.6]} 14... Kb6 {[%clk 0:04:17.2]} 15. Qe2
{[%clk 0:04:11.2]} 15... Bxe6 {[%clk 0:04:13.1]} 16. fxe6 {[%clk 0:04:01]} 16...
g5 {[%clk 0:04:07.4]} 17. Be5 {[%clk 0:03:59.2]} 17... Rg8 {[%clk 0:04:04.9]}
18. Na4+ {[%clk 0:03:57.3]} 18... Qxa4 {[%clk 0:04:01.8]} 19. Rxa4 {[%clk
0:03:57.2]} 19... a5 {[%clk 0:03:59.2]} 20. Qe3+ {[%clk 0:03:52.7]} 20... Ka6
{[%clk 0:03:58]} 21. Bc7 {[%clk 0:03:50]} 1-0

[Event "Live Chess"]
[Site "Chess.com"]
[Date "2024.06.02"]
[Round "-"]
[White "juniortay"]
[Black "elephantgerrald"]
[Result "1-0"]
[WhiteElo "2449"]
[BlackElo "785"]
[TimeControl "300"]
[EndTime "21:42:02 PDT"]
[Termination "juniortay won by checkmate"]

1. e4 {[%clk 0:04:57.7]} 1... e5 {[%clk 0:04:59.9]} 2. Nc3 {[%clk 0:04:56.6]}
2... Nf6 {[%clk 0:04:58.6]} 3. f4 {[%clk 0:04:55.6]} 3... exf4 {[%clk
0:04:57.3]} 4. e5 {[%clk 0:04:54.7]} 4... Ng8 {[%clk 0:04:54.1]} 5. Nf3 {[%clk
0:04:53.4]} 5... f6 {[%clk 0:04:51.8]} 6. d4 {[%clk 0:04:50.4]} 6... d5 {[%clk
0:04:49.1]} 7. Bxf4 {[%clk 0:04:48.7]} 7... Nc6 {[%clk 0:04:43.9]} 8. Bb5 {[%clk
0:04:45.9]} 8... Ne7 {[%clk 0:04:40.2]} 9. O-O {[%clk 0:04:44.2]} 9... Bg4
{[%clk 0:04:37.8]} 10. exf6 {[%clk 0:04:43]} 10... gxf6 {[%clk 0:04:35.9]} 11.
h3 {[%clk 0:04:42.1]} 11... Bxf3 {[%clk 0:04:34.3]} 12. Qxf3 {[%clk 0:04:40.5]}
12... a6 {[%clk 0:04:28.1]} 13. Bxc6+ {[%clk 0:04:30.4]} 13... Nxc6 {[%clk
0:04:26.1]} 14. Rae1+ {[%clk 0:04:29.2]} 14... Be7 {[%clk 0:04:24.3]} 15. Qh5+
{[%clk 0:04:28.1]} 15... Kd7 {[%clk 0:04:20.7]} 16. Qf5+ {[%clk 0:04:26.8]}
16... Ke8 {[%clk 0:04:18.2]} 17. Qxf6 {[%clk 0:04:18.9]} 17... Rf8 {[%clk
0:04:12]} 18. Qg7 {[%clk 0:04:17.2]} 18... Qd7 {[%clk 0:04:03.9]} 19. Be5 {[%clk
0:03:32.5]} 19... Kd8 {[%clk 0:03:52.1]} 20. Rxf8+ {[%clk 0:03:27.4]} 20... Bxf8
{[%clk 0:03:49.1]} 21. Qxf8+ {[%clk 0:03:27.3]} 21... Qe8 {[%clk 0:03:47.9]} 22.
Bxc7+ {[%clk 0:03:25]} 22... Kxc7 {[%clk 0:03:45.8]} 23. Rxe8 {[%clk 0:03:24.1]}
23... Rxe8 {[%clk 0:03:44.5]} 24. Qxe8 {[%clk 0:03:23.3]} 24... Kb6 {[%clk
0:03:42.9]} 25. Nxd5+ {[%clk 0:03:20.8]} 25... Kb5 {[%clk 0:03:40.6]} 26. Qe2+
{[%clk 0:03:18.7]} 26... Ka5 {[%clk 0:03:38.6]} 27. c3 {[%clk 0:03:16.8]} 27...
b6 {[%clk 0:03:35.9]} 28. b4+ {[%clk 0:03:15.6]} 28... Nxb4 {[%clk 0:03:34.3]}
29. cxb4+ {[%clk 0:03:13.8]} 29... Ka4 {[%clk 0:03:31.4]} 30. Qxa6# {[%clk
0:03:11.2]} 1-0